Cogmind - Beta 15 @@@ ROGUE MODE // 2025.09.27 @ 06:31:02 Player: souux Result: Destroyed by P-60 Hacker with Shock Rifle Performance ------------- Evolutions (4) 2000 Regions Visited (6) 1200 Robots Destroyed (109) 545 Value Destroyed (4181) 4181 Prototype IDs (3) 60 Alien Tech Used (0) 0 Bonus (6) 6 TOTAL SCORE: 7992 Bonus ------- High Alert Combat Kills 6 Cogmind --------- Core Integrity 0/850 Matter 187/300 Energy 82/150 System Corruption 15% Temperature Hot (248) Movement Rolling (100) Location -6/Factory Parts ------- > --- POWER (2) -------- Micro Nuclear Core Fusion Compressor > --- PROPULSION (5) --- Improved VSS Leg Armored Huge Wheel > --- UTILITY (5) ------ Improved Heat Sink Improved Targeting Computer Insulated Plating EM Shield Improved System Shield > --- WEAPON (3) ------- Shock Rifle Improved Arc Projector > --- INVENTORY (5) ---- Large Storage Unit Peak State ------------ > --- POWER ------------ Micro Nuclear Core Fusion Compressor > --- PROPULSION ------- Improved VSS Leg Armored Huge Wheel Armored Huge Wheel > --- UTILITY ---------- Large Storage Unit Improved Targeting Computer Insulated Plating EM Shield Improved System Shield > --- WEAPON ----------- Shock Rifle Improved Arc Projector > --- INVENTORY -------- (None) [Rating: 55] Favorites ----------- Power Micro Nuclear Core Engine Improved Deuterium Engine Power Core Micro Nuclear Core Propulsion VSS Leg Treads Light Treads Leg VSS Leg Wheel Armored Huge Wheel Utility Large Storage Unit Device Improved Cooling System Storage Large Storage Unit Processor Advanced Targeting Computer Hackware Improved System Shield Protection Reflective Plating Weapon Advanced Assault Cannon Energy Gun Field Laser Energy Cannon Heavy Particle Cannon Ballistic Gun Gauss Rifle Ballistic Cannon Advanced Assault Cannon Launcher Rocket Launcher Impact Weapon Great Maul Build | -11 -10 -9 -8 -7 -7 -6 ------- Run | Yrd Mat Mat Mat Fac Sto Fac Slots Evolved 8 | . . 2 2 2 . 2 Power 1 | . . . . . . 1 Propulsion 3 | . . 1 1 1 . . Utility 3 | . . 1 . 1 . 1 Weapon 1 | . . . 1 . . . Parts Attached 126 | 6 12 9 22 23 32 22 Power 19 | 1 4 1 1 3 5 4 Engine 12 | 1 4 1 . 1 5 . Core 7 | . . . 1 2 . 4 Reactor . | . . . . . . . Propulsion 43 | 2 2 2 15 5 11 6 Treads 5 | . 2 . . . 2 1 Leg 32 | 2 . 2 15 5 7 1 Wheel 6 | . . . . . 2 4 Hover . | . . . . . . . Flight . | . . . . . . . Utility 30 | 1 4 3 2 5 7 8 Device 12 | . 2 1 1 1 3 4 Storage 3 | 1 2 . . . . . Processor 6 | . . 2 1 1 1 1 Hackware 1 | . . . . . . 1 Protection 8 | . . . . 3 3 2 Artifact . | . . . . . . . Weapon 34 | 2 2 3 4 10 9 4 Energy Gun 18 | 2 1 2 4 1 4 4 Energy Cannon 7 | . . . . 5 2 . Ballistic Gun 4 | . 1 . . . 3 . Ballistic Cannon 3 | . . 1 . 2 . . Launcher 1 | . . . . 1 . . Special Weapon . | . . . . . . . Impact Weapon 1 | . . . . 1 . . Slashing Weapon . | . . . . . . . Piercing Weapon . | . . . . . . . Special Melee Weapon . | . . . . . . . Unidentified Prototypes 3 | . . . 1 . 2 . Parts Lost 48 | . . . 2 . 25 21 Power 7 | . . . . . 4 3 Propulsion 16 | . . . . . 9 7 Utility 9 | . . . . . 4 5 Weapon 16 | . . . 2 . 8 6 Highest Loss Streak 15 | . . . 1 . 15 13 To Critical Strikes 2 | . . . . . 1 1 Average Backups 11 | 3 8 13 14 14 8 6 Power 1 | . 1 1 1 1 . 1 Propulsion 1 | 1 3 2 2 2 . . Utility 4 | . 1 5 7 5 4 3 Weapon 3 | . 1 4 3 4 2 . Tool/Special . | . . . . . . . Unused Backups 32 | . 5 3 7 13 4 . Power 5 | . 1 . 1 3 . . Propulsion 3 | . 2 . 1 . . . Utility 15 | . 2 2 4 4 3 . Weapon 8 | . . 1 1 5 1 . Tool/Special 1 | . . . . 1 . . Average Slot Usage (%) 89 | . 99 99 99 99 77 66 Engine 4 | . 14 11 6 1 5 1 Core 3 | . . . 2 5 . 7 Treads 3 | . 27 . . . 2 . Leg 26 | . . 32 35 38 20 23 Device 6 | . 4 11 7 7 4 4 Storage 8 | . 23 11 9 7 4 5 Processor 7 | . . 10 10 7 10 6 Protection 3 | . . . . 6 5 2 Energy Gun 10 | . 22 21 23 6 5 . Energy Cannon 1 | . . . . 4 2 . Ballistic Gun 3 | . 5 . . . 8 5 Ballistic Cannon 4 | . . . 3 11 1 . Peak Build Rating 55 | 6 9 20 35 47 47 55 Average Rating 32 | 4 7 16 24 46 34 33 On Entrance 22 | . 6 9 20 34 47 41 Naked Turns . | . . . . . . . Heaviest Build 72 | 11 48 33 36 59 56 72 Greatest Support 62 | 20 40 30 48 62 62 60 Greatest Overweight (x) 11 | . 1 1 1 1 11 6 Average Overweight (x) . | . . 1 . . 1 . Largest Inventory Capacity 15 | 8 15 15 15 15 15 15 Average Capacity 13 | 7 14 15 15 15 11 14 Most Carried 15 | 5 14 15 15 15 15 11 Average Carried 11 | 3 8 13 14 14 7 6 Final Capacity 15 | 8 15 15 15 15 5 5 Final Carried 15 | 5 14 15 15 15 5 1 Class Distribution -------------------- 40% | Gunner 29% | Mutant 19% | Scavenger-Gunner 8% | Scavenger-Mutant Dominant Class ---------------- Mutant | -10/Materials Mutant | -9/Materials Scavenger-Gunner | -8/Materials Gunner | -7/Factory Gunner | -7/Storage Scavenger-Mutant | -6/Factory Resources | -11 -10 -9 -8 -7 -7 -6 ----------- Run | Yrd Mat Mat Mat Fac Sto Fac Matter Collected 3407 | 260 183 140 418 854 963 589 Remotely 93 | . 93 . . . . . Salvage Created 4647 | 53 269 128 867 973 1590 767 Parts 194 | 4 20 4 33 57 59 17 Haulers Intercepted 2 | . . . . . 2 . Recyclers Shooed 5 | . . . 4 . . 1 Parts Field Recycled . | . . . . . . . Retrieved Matter . | . . . . . . . Parts Self-Destructed . | . . . . . . . Prevented . | . . . . . . . Kills | -11 -10 -9 -8 -7 -7 -6 ------- Run | Yrd Mat Mat Mat Fac Sto Fac Combat Hostiles Destroyed 87 | . 10 3 16 24 26 8 Melee 6 | . . . . 1 1 4 Guns 49 | . 10 3 13 2 19 2 Cannons 19 | . . . 3 14 2 . AOE 9 | . . . . 7 2 . Classes Destroyed 13 | 1 2 . 2 5 2 1 Worker 4 | . . . . 2 2 . Builder 4 | . . . . 3 1 . Hauler 2 | . . . . . 2 . Recycler 9 | 1 . . 2 . 3 3 Mechanic 1 | . . . . . 1 . Watcher 2 | . . . . 2 . . Swarmer 13 | . 6 . . 7 . . Grunt 47 | . 4 3 14 10 16 . Brawler 1 | . . . 1 . . . Sentry 10 | . . . 1 3 6 . Specialist 2 | . . . . . . 2 Hunter 4 | . . . . 1 1 2 Programmer 10 | . . . . 3 3 4 Best Kill Streak 9 | 1 4 2 5 9 6 5 Combat Bots Only 6 | . 4 2 4 6 3 5 Max Kills in Single Turn 3 | 1 1 1 1 3 2 1 Gunslinging . | . . . . . . . Exploded 2 | . . . . 2 1 . Melee 1 | . . . . 1 1 1 Uniques/NPCs Destroyed . | . . . . . . . Combat | -11 -10 -9 -8 -7 -7 -6 -------- Run | Yrd Mat Mat Mat Fac Sto Fac Hostile Shots Fired 963 | . 46 12 80 88 418 319 Missed 264 | . 12 3 20 28 126 75 Hits 699 | . 34 9 60 60 292 244 Melee 4 | . . . 2 . 2 . Projectile 695 | . 34 9 58 60 290 244 Critical Strikes 26 | . . 3 1 3 7 12 Part Disruptions 3 | . . . . . . 3 Damage Taken 9664 | . 325 133 990 834 3784 3598 Core 1615 | . 34 29 141 15 542 854 Absorbed by Shields 205 | . . . . . . 205 Ignored by Resistances 204 | . . . . 36 . 168 Regen/Repaired (Parts) 71 | . 45 . 26 . . . Core Remaining (%) 74 | 100 86 92 74 . 20 . Volleys Fired 245 | 1 25 8 59 36 94 22 Largest 3 | 2 2 2 3 3 3 3 Hottest 215 | 90 90 126 189 184 215 170 Shots Fired 568 | 2 50 16 157 97 210 36 Gun 414 | 2 50 16 129 13 168 36 Cannon 140 | . . . 28 78 34 . Launcher 14 | . . . . 6 8 . Special . | . . . . . . . Kinetic 218 | . 13 . 28 56 109 12 Thermal 281 | 2 37 16 129 31 66 . Explosive 14 | . . . . 6 8 . Electromagnetic 55 | . . . . 4 27 24 Robot Hit Streak 36 | 2 9 7 19 11 36 13 Robot Miss Streak 4 | . 3 1 4 3 3 3 Penetration Max 1 | . . . . . 1 1 Secondary Targets 3 | . . . . . 3 . Max Gunslinging Chain 1 | . . . . . 1 . Shots Hit Robots 417 | 2 32 12 105 57 163 46 Core Hits 188 | 2 18 4 38 43 69 14 Critical Kills 1 | . . . . . 1 . Critical Parts Destroyed 13 | . . . . 1 3 9 Critical Strikes 25 | . 1 . 5 4 6 9 Burn 8 | . 1 . 4 1 2 . Destroy 2 | . . . . . 2 . Blast 3 | . . . 1 2 . . Smash 12 | . . . . 1 2 9 Melee Attacks 50 | . . . . 10 17 23 Impact 50 | . . . . 10 17 23 Slashing . | . . . . . . . Piercing . | . . . . . . . Sneak Attacks 5 | . . . . 1 1 3 Combat Hostiles 1 | . . . . . 1 . Follow-up Attacks . | . . . . . . . Damage Inflicted 10387 | 24 367 201 1914 2261 4185 1435 Guns 5115 | 24 367 201 1533 189 2318 483 Cannons 2380 | . . . 317 1395 668 . Explosions 1179 | . . . . 475 661 43 Melee 1641 | . . . . 202 530 909 Ramming 72 | . . . 64 . 8 . Kinetic 3328 | . 57 . 317 997 1650 307 Thermal 3623 | 24 310 201 1533 482 1030 43 Explosive 1136 | . . . . 475 661 . Electromagnetic 587 | . . . . 105 306 176 Impact 1641 | . . . . 202 530 909 Slashing . | . . . . . . . Piercing . | . . . . . . . Highest Corruption 15 | . . . 4 4 10 15 Average Corruption 4 | . . . 4 2 6 7 Corruption Purged . | . . . . . . . Corruption Blocked . | . . . . . . . Effects 73 | . . . 9 15 43 6 Message Errors 11 | . . . 1 2 7 1 Matter Fused 17 | . . . 3 4 8 2 Heat Flow Errors 8 | . . . . 1 5 2 Energy Discharges 6 | . . . 1 . 5 . Parts Rejected 3 | . . . 1 . 2 . Parts Fused 1 | . . . . 1 . . Data Loss (minor) 6 | . . . . 2 3 1 Data Loss (major) 7 | . . . . 1 6 . Misfires 6 | . . . 2 2 2 . Alerts 2 | . . . . 1 1 . Weapon Failures 6 | . . . 1 1 4 . Overload Shots . | . . . . . . . Overflow Damage 1014 | . . . 15 145 315 539 Projectiles 22 | . . . 15 7 . . Explosions 94 | . . . . 32 62 . Melee 898 | . . . . 106 253 539 Knockbacks 30 | . . . 3 17 7 3 Impact 8 | . . . . 1 4 3 Kinetic 17 | . . . 2 13 2 . Secondary 5 | . . . 1 3 1 . Self-Inflicted Damage 167 | . . . . 12 142 13 Shots 5 | . . . . 1 3 1 Rammed . | . . . . . . . Targets Rammed 11 | . . . 9 . 2 . Kicked 11 | . . . 9 . 2 . Crushed . | . . . . . . . Highest Temperature 627 | 30 228 314 528 121 403 627 Average Temperature 122 | 18 71 136 170 21 111 148 Received Heat Transfer 2643 | . 90 129 540 303 1203 378 Effects 43 | . . . 18 . 7 18 Shutdowns 11 | . . . 3 . 3 5 Energy Bleed 4 | . . . . . 1 3 Interference 13 | . . . 13 . . . Matter Decay 3 | . . . 1 . 1 1 Short Circuit 1 | . . . 1 . . . Damage (minor) 1 | . . . . . . 1 Damage (major) 9 | . . . . . 2 7 Damage (core) 1 | . . . . . . 1 Siege Activations . | . . . . . . . Martial Activations . | . . . . . . . Shielding Activations . | . . . . . . . Robots Disrupted 2 | . . . . . 2 . Combat Hostiles 2 | . . . . . 2 . Robots Corrupted 7 | . . . . 1 2 4 Combat Hostiles 4 | . . . . . 2 2 Parts Fried 15 | . . . . 2 1 12 Impact Corruptions 34 | . . . . 4 11 19 Robots Melted . | . . . . . . . Combat Hostiles . | . . . . . . . Parts Melted 9 | . 1 . 6 . 1 1 Heat Transferred 8058 | 62 927 444 3626 851 1998 150 Parts Sabotaged . | . . . . . . . Parts Stolen . | . . . . . . . Parts Stripped . | . . . . . . . Power Chain Reactions 1 | . . . . . . 1 Alert | -11 -10 -9 -8 -7 -7 -6 ------- Run | Yrd Mat Mat Mat Fac Sto Fac Maximum Alert Level 2 | . . . . 2 1 . Low Security (%) 83 | 100 100 100 100 74 64 100 Level 1 12 | . . . . 13 35 . Level 2 3 | . . . . 11 . . Level 3 . | . . . . . . . Level 4 . | . . . . . . . Level 5 . | . . . . . . . High Security . | . . . . . . . Max Security . | . . . . . . . Peak Influence 431 | 5 135 40 155 431 328 147 Initial 182 | . . 24 9 49 182 147 Average 97 | 1 51 9 81 110 182 32 Influence Increases 2769 | 5 272 100 420 716 934 322 Destroy 0b10 Robot/C 1740 | . 200 60 320 480 520 160 Destroy 0b10 Robot/NC 110 | 5 . . 10 35 45 15 Destroy Leader 388 | . 40 20 50 104 144 30 Successful Hack 29 | . 2 4 4 . 7 12 Disable Machine 105 | . . . . 15 60 30 Destroy Structure 127 | . . 1 6 52 68 . Lose Combat Pursuer 270 | . 30 15 30 30 90 75 Influence Decreases 2756 | 5 214 136 334 423 1011 633 Entered New Map 502 | . . 34 13 59 219 177 Time Decay 1790 | 5 214 102 301 364 542 262 Lost Part 454 | . . . 20 . 250 184 Lost Ally 10 | . . . . . . 10 Squads Dispatched 25 | . 2 1 3 7 9 3 Investigation 6 | . . 1 2 1 1 1 Extermination 8 | . . . . 3 3 2 Reinforcement 9 | . 2 . 1 2 4 . Assault 1 | . . . . 1 . . Garrison 1 | . . . . . 1 . Intercept . | . . . . . . . Searches Triggered . | . . . . . . . Construction Impeded 1 | . . . . . 1 . Haulers Reinforced 2 | . . . . 1 1 . Active Scanning Responses . | . . . . . . . Cargo Convoy Interrupts 1 | . . . . . . 1 Stealth | -11 -10 -9 -8 -7 -7 -6 --------- Run | Yrd Mat Mat Mat Fac Sto Fac Distress Signals 10 | . 2 . 3 1 3 1 Communications Jammed . | . . . . . . . Distress Signals . | . . . . . . . Times Spotted 152 | . 17 4 28 37 44 22 Peak Tracking Total 10 | . 5 2 6 6 5 10 Tactical Retreats 14 | . 2 1 2 2 5 2 Traps | -11 -10 -9 -8 -7 -7 -6 ------- Run | Yrd Mat Mat Mat Fac Sto Fac Traps Triggered 2 | . . . 1 . 1 . Indirectly . | . . . . . . . Trap Hack Attempts . | . . . . . . . Triggered . | . . . . . . . Disarmed . | . . . . . . . Reprogrammed . | . . . . . . . Reused . | . . . . . . . Traps Extracted . | . . . . . . . Installed . | . . . . . . . Triggered . | . . . . . . . Machines | -11 -10 -9 -8 -7 -7 -6 ---------- Run | Yrd Mat Mat Mat Fac Sto Fac Machines Disabled 7 | . . . . 1 4 2 Max in Single Turn 1 | . . . . 1 1 1 Machines Repaired . | . . . . . . . Machines Dismantled . | . . . . . . . Machines Sabotaged . | . . . . . . . Overloaded Fab Kills . | . . . . . . . Hacking | -11 -10 -9 -8 -7 -7 -6 --------- Run | Yrd Mat Mat Mat Fac Sto Fac Machines Accessed 12 | . 2 2 3 2 2 1 Terminals 4 | . 1 1 1 . 1 . Fabricators 1 | . . . . 1 . . Repair Stations 4 | . 1 . 1 . 1 1 Recycling Units 1 | . . . 1 . . . Scanalyzers 2 | . . 1 . 1 . . Garrison Access . | . . . . . . . Total Hacks 36 | . 7 7 9 5 5 3 Successful 13 | . 2 4 4 1 1 1 Failed 23 | . 5 3 5 4 4 2 Catastrophic 5 | . 1 . 2 1 1 . Database Lockouts . | . . . . . . . Manual 9 | . 5 2 2 . . . Terminals 12 | . 5 2 2 . 3 . Fabricators 2 | . . . . 2 . . Repair Stations 13 | . 2 . 6 . 2 3 Recycling Units 1 | . . . 1 . . . Scanalyzers 8 | . . 5 . 3 . . Garrison Access . | . . . . . . . Terminal Hacks 1 | . . . . . 1 . Open Door 1 | . . . . . 1 . Fabricator Hacks 1 | . . . . 1 . . Build 1 | . . . . 1 . . Repair Station Hacks 6 | . 2 . 3 . . 1 Scan Component 4 | . 1 . 2 . . 1 Repair 2 | . 1 . 1 . . . Recycling Unit Hacks 1 | . . . 1 . . . Retrieve Components 1 | . . . 1 . . . Scanalyzer 4 | . . 4 . . . . Insert Component 2 | . . 2 . . . . Analyze 2 | . . 2 . . . . Garrison Access Hacks . | . . . . . . . Unauthorized Hacks . | . . . . . . . Terminals . | . . . . . . . Fabricators . | . . . . . . . Repair Stations . | . . . . . . . Recycling Units . | . . . . . . . Scanalyzers . | . . . . . . . Garrison Access . | . . . . . . . Data Cores Recovered . | . . . . . . . Used . | . . . . . . . Hacking Detections 9 | . 1 2 2 2 1 1 Full Trace Events 8 | . 1 2 2 1 1 1 Feedback Events 1 | . . . . 1 . . Corruption 1 | . . . . 1 . . Feedback Blocked . | . . . . . . . Robot Schematics Acquired . | . . . . . . . Robots Built . | . . . . . . . Authchips . | . . . . . . . Time . | . . . . . . . Total Robot Build Rating . | . . . . . . . Part Schematics Acquired 2 | . . 2 . . . . Parts Built 2 | . . . . 2 . . Authchips . | . . . . . . . Time 84 | . . . . 84 . . Total Part Build Rating 8 | . . . . 8 . . Parts Repaired 2 | . 1 . 1 . . . Time 64 | . 26 . 38 . . . Parts Recycled . | . . . . . . . Recycled Matter . | . . . . . . . Retrieved Matter . | . . . . . . . Retrieved Components 10 | . . . 10 . . . Parts Scanalyzed 2 | . . 2 . . . . Part Schematics Acquired 2 | . . 2 . . . . Parts Damaged . | . . . . . . . Bothacking | -11 -10 -9 -8 -7 -7 -6 ------------ Run | Yrd Mat Mat Mat Fac Sto Fac Used RIF Installer . | . . . . . . . Robots Hacked . | . . . . . . . Non-combat . | . . . . . . . Combat . | . . . . . . . Robot Hacks Applied . | . . . . . . . Relay Couplers Released . | . . . . . . . Fabnet Peak Effective % . | . . . . . . . Robots Rewired . | . . . . . . . Allies Hacked . | . . . . . . . Hacks Repelled . | . . . . . . . Allies | -11 -10 -9 -8 -7 -7 -6 -------- Run | Yrd Mat Mat Mat Fac Sto Fac Total Allies . | . . . . . . . Largest Group . | . . . . . . . Highest-Rated Group . | . . . . . . . Highest-Rated Ally . | . . . . . . . Total Orders . | . . . . . . . Ally Attacks . | . . . . . . . Total Damage . | . . . . . . . Kills . | . . . . . . . Allies Corrupted . | . . . . . . . Allies Melted . | . . . . . . . Intel | -11 -10 -9 -8 -7 -7 -6 ------- Run | Yrd Mat Mat Mat Fac Sto Fac Active Infowar (turns) 627 | . 23 507 97 . . . Optics 573 | . . 476 97 . . . Sensors 478 | . 23 455 . . . . Robot Analysis Total . | . . . . . . . Derelict Logs Recovered . | . . . . . . . Drone Launches 2 | . . . . . . 2 Drone Recoveries 1 | . . . . . . 1 Exploration | -11 -10 -9 -8 -7 -7 -6 ------------- Run | Yrd Mat Mat Mat Fac Sto Fac Turns Passed 6652 | 70 748 507 765 2102 1546 914 Spaces Moved 2704 | 46 236 230 332 1014 465 381 Core 88 | 7 . . . . 80 1 Treads 244 | . 231 . . . . 13 Legs 2321 | 39 5 230 332 1014 385 316 Wheels 51 | . . . . . . 51 Hover . | . . . . . . . Flight . | . . . . . . . Fastest Speed 50 | 50 120 190 90 90 50 100 Average Speed 166 | 109 201 190 119 164 205 139 Slowest Speed 600 | 120 240 190 190 185 600 350 Overloaded Moves . | . . . . . . . Propulsion Burnouts . | . . . . . . . Robots Hopped . | . . . . . . . Potential Cave-ins . | . . . . . . . Cave-ins Triggered . | . . . . . . . Exploration Rate (%) 24 | 4 38 22 27 25 46 6 Regions Visited 6 Branch Regions 1 Pre-discovered Areas . | . . . . . . . Known Exits Taken 1 | . . . 1 . . . Unknown Exits Taken 5 | 1 1 1 . 1 1 . Scrap Searched . | . . . . . . . Spaces Dug 29 | . . . . 7 22 . Terrain Destroyed 130 | . . . 1 49 80 . Melee 7 | . . . . 7 . . Projectile 18 | . . . 1 8 9 . AOE 104 | . . . . 34 70 . Terrain Rammed . | . . . . . . . Walls Destroyed . | . . . . . . . Machines Disabled . | . . . . . . . Actions | -11 -10 -9 -8 -7 -7 -6 --------- Run | Yrd Mat Mat Mat Fac Sto Fac Total 4288 | 63 459 287 583 1360 849 687 Wait 835 | . 149 5 100 201 173 207 Move 2698 | 45 235 229 331 1013 464 381 Hop . | . . . . . . . Pick Up 148 | 11 21 17 25 28 25 21 Fast Attach 10 | . . . . 2 8 . Attach 70 | 6 2 3 5 2 28 24 Detach 6 | . 1 1 . . 4 . Swap 108 | . 16 10 27 35 15 5 Drop 107 | . 10 14 27 33 19 4 Fire 245 | 1 25 8 59 36 94 22 Melee 50 | . . . . 10 17 23 Ram . | . . . . . . . Kick 11 | . . . 9 . 2 . Crush . | . . . . . . . Escape Stasis . | . . . . . . . Rewire . | . . . . . . . Trap . | . . . . . . . Miscellaneous . | . . . . . . . Route ------- -11/Scrapyard -10/Materials -9/Materials -8/Materials -7/Factory -7/Storage -6/Factory History --------- Turn | Location | Event 39 | -11/Scrapyard | Discovered new exit (range 16) 71 | -11/Scrapyard | Entered Materials 318 | -10/Materials | Build established: Mutant 744 | -10/Materials | Repaired Med. Laser 810 | -10/Materials | Discovered new exit (range 3) 819 | -10/Materials | Entered another Materials area 819 | -9/Materials | Evolved 2 slots: Propulsion x1, Utility x1 1307 | -9/Materials | Discovered new exit (range 4) 1326 | -9/Materials | Entered another Materials area 1326 | -8/Materials | Evolved 2 slots: Propulsion x1, Weapon x1 1772 | -8/Materials | Build established: Scavenger-Gunner 1858 | -8/Materials | Repaired Lgt. Nuclear Core 1874 | -8/Materials | Discovered new exit (range 15) 2090 | -8/Materials | Identified exit to Factory 2091 | -8/Materials | Entered Factory 2091 | -7/Factory | Evolved 2 slots: Propulsion x1, Utility x1 2352 | -7/Factory | Fabricated Adv. Assault Cannon (x2) 2450 | -7/Factory | Build established: Gunner 4091 | -7/Factory | First assault squad dispatched 4188 | -7/Factory | Discovered new exit (range 4) 4193 | -7/Factory | Entered Storage 4623 | -7/Storage | Lost 5 parts (1p1n2u1w) 4860 | -7/Storage | Lost 15 parts (2p8n1u4w) 5073 | -7/Storage | Core integrity fell below 50% 5091 | -7/Storage | Build established: Mutant 5641 | -7/Storage | Build established: Scavenger-Gunner 5661 | -7/Storage | System corruption reached 10% 5678 | -7/Storage | Discovered new exit (range 8) 5694 | -7/Storage | Garrison activated, responded to threat 5739 | -7/Storage | Entered Factory 5739 | -6/Factory | Evolved 2 slots: Power x1, Utility x1 5995 | -6/Factory | Lost 4 parts (2u2w) 6077 | -6/Factory | Lost 3 parts (1p1n1w) 6238 | -6/Factory | Build established: Scavenger-Mutant 6481 | -6/Factory | Cargo convoy interrupted 6548 | -6/Factory | System corruption reached 10% 6561 | -6/Factory | Core integrity fell below 50% 6622 | -6/Factory | Core integrity fell below 20% 6653 | -6/Factory | Destroyed by P-60 Hacker with Shock Rifle Last Messages --------------- 06639_ Power failure, Fusion Compressor shutdown. 06641_ Carbon-fiber Leg destroyed. 06641_ Arc Projector destroyed. 06642_ Overheating: Imp. System Shield damaged (-3). 06642_ Overheating: Imp. Targeting Computer damaged (-1). 06642_ Overheating: Arm. Huge Wheel damaged (-15). 06642_ Overheating: Imp. Arc Projector damaged (-29). 06645_ Overheating: Energy bleed (-13). 06645_ Acquired Insulated Plating. 06648_ Power failure, Mic. Nuclear Core shutdown. 06649_ Acquired Imp. Heat Sink. 06650_ Arm. Huge Wheel destroyed. 06651_ Power failure, Fusion Compressor shutdown. Map ----- +----------------------------------------------------+ | ????????????# #???????????????????????? | | ????????????#######+####+#???????????????????????? | | ????????????????# #???????????????????????? | | ????????????????# #???????????????????????? | | ????????????????# #???????????????????????? | | ?????????????#### #???????????????????????? | | ??????????#### #???????????????????????? | | ??????????#""" #???????????????????????? | | ??????????#"R "" "" #???????????????????????? | | ??????????#""" "" "" !#???????????????????????? | | ??????????#### """ """ #???????????????????????? | | ?? ???????# """ """ #???????????????????????? | | ? ??????# """ " " #???????????????????????? | | ? ??????# #???????????????????????? | | ??# ?????# " #???????????????????????? | | ??# ""%"###### "" #???????????????????????? | | ??#"%"" ! "" #???????????????????????? | | ??# " =%! "" #???????????????????????? | | ??# ==%""" #???????????????????????? | | ??# #???????????????????????? | | ??# %#???????????????????????? | | ??######## #########!#???????????????????????? | | ?????????# #??????##%#???????????????????????? | | ?????????# #########+####????????????????????? | | ?????????# # =%%| #????????????????????? | | ?????????# # p @ #????????????????????? | | ?????????# # "" "==|!" #????????????????????? | | ?????????# # " " #????????????????????? | | ?????????# # """" " #????????????????????? | | ?????????# # """" " "" #????????????????????? | | ?????????# # #????????????????????? | | ?????????+ + " "" #????????????????????? | | ?????????# # " " """" #????????????????????? | | ?????????# # "R" """" #????????????????????? | | ?????????# #?""" """" #????????????????????? | | ?????????# #?? #????????????????????? | | ?????????# ####+####??###????????????????????? | | ########## ???????????????????????? | | ??????????????????????? | | ########## ???????????????????????? | | ?????????# ???????????????????????? | | ?????????# ????????????????????????? | | ?????????############### ????????????????????????? | | ?????????????????????????????????????????????????? | | ?????????????????????????????????????????????????? | | ?????????????????????????????????????????????????? | | ?????????????????????????????????????????????????? | | ?????????????????????????????????????????????????? | | ?????????????????????????????????????????????????? | | ?????????????????????????????????????????????????? | +----------------------------------------------------+ Best States ------------- Heat Dissipation 61 Energy Generation 35 Energy Capacity 340 Matter Stores 300 Matter Capacity 300 Sight Range 20 Robot Scan Range 14 Terrain Scan Density 10 Armor Coverage 600 Resistance: TH 10 Resistance: EM 25 Evasion (%) 55 Targeting Accuracy 8 Launcher Accuracy 20 Recoil Reduction 2 Particle Charging 15 Kinecelleration 30 Defensive Hacking 12 Item Schematics ----------------- Imp. Light Cannon | -9/Materials | Scanalyzed Adv. Visual Processing Unit | -9/Materials | Scanalyzed Robot Schematics ------------------ None Fabricated ------------ Adv. Assault Cannon | x2 | -7/Factory | Preloaded Repaired ---------- Med. Laser | 35% | -10/Materials Lgt. Nuclear Core | 48% | -8/Materials Alien Tech Used ----------------- None Achievements -------------- Just What I Needed Significant Disruption Challenges ------------ None Game ------ Seed ColdBlanketCompanion Manual? 0 Play Time 01:38:52 Cumulative 12.0 hours Start 2025.09.27 @ 04:52:38 End 2025.09.27 @ 06:31:02 Sessions 1 Manual Loads 0 Difficulty Rogue Special Mode None Game No. 20 Rogue 20 Adventurer 0 Explorer 0 Win Type - Total 0 Types 0/0/0/0/0/0/0/0/0/0 Lore% 7 Gallery% 15 Achievement% 16 Wizard Run 0 Options --------- Layout 1 ASCII 0 Keyboard 0 Movement Mouse Keybinds 0 Fullscreen 2 Font 24/Smallcaps Map View 50x35 Zoom Use 0% Tactical HUD 1 Map Filters NONE Filters NONE Steam 1 RUN: b1299739-7fdd-43d4-b79f-7ddd816799de